[Event "Cracovia Festival-A 2023"]
[Site "Krakow"]
[Date "2023.12.29"]
[Round "3.1"]
[White "Puranik, Abhimanyu"]
[Black "Schwabeneder, Florian"]
[Result "1/2-1/2"]
[ECO "E11"]
[WhiteElo "2627"]
[BlackElo "2402"]
[Annotator "ChessBase"]
[PlyCount "83"]
[EventDate "2023.12.24"]
[EventType "swiss"]
[EventCountry "POL"]
[SourceTitle "playchess.com"]
[Source "ChessBase"]
[SourceQuality "1"]
[TimeControl "40/5400+30:1800+30"]

1. d4 {[%emt 0:00:07]} Nf6 {[%emt 0:00:50]} 2. c4 {[%emt 0:00:06]} e6 {[%emt 0:04:00]} 3. Nf3 {[%emt 0:00:06]} Bb4+ {[%emt 0:02:59]} 4. Nbd2 {[%emt 0:00:14]} O-O {[%emt 0:00:29]} 5. a3 {[%emt 0:00:05]} Be7 {[%emt 0:00:05]} 6. e4 {[%emt 0:00:05]} d6 {[%emt 0:00:06]} 7. Bd3 {[%emt 0:00:13]} e5 {[%emt 0:02:13]} 8. O-O {[%emt 0:00:32]} exd4 {[%emt 0:11:17]} 9. Nxd4 {[%emt 0:00:08]} Nfd7 {[%emt 0:00:21]} 10. f4 {[%emt 0:07:35]} Bf6 {[%emt 0:06:59]} 11. N2f3 {[%emt 0:02:17]} Nc6 {[%emt 0:10:20]} 12. Nxc6 {[%emt 0:03:19]} bxc6 {[%emt 0:00:07]} 13. Qc2 {[%emt 0:00:08]} g6 {[%emt 0:02:41]} 14. Be3 {[%emt 0:00:07]} Bg7 {[%emt 0:06:11]} 15. Rad1 {[%emt 0:04:31]} a5 {[%emt 0:06:07]} 16. c5 {[%emt 0:01:22]} Nxc5 {[%emt 0:05:43]} 17. Bxc5 {[%emt 0:01:06]} dxc5 {[%emt 0:00:07]} 18. e5 {[%emt 0:00:28]} Qe7 {[%emt 0:00:30]} 19. h3 {[%emt 0:08:26]} Rb8 {[%emt 0:02:54]} 20. Rf2 {[%emt 0:05:24]} Bh6 {[%emt 0:04:16]} 21. Nd2 {[%emt 0:04:56]} Be6 {[%emt 0:02:18]} 22. Re1 {[%emt 0:02:36]} Bd5 {[%emt 0:02:18]} 23. Ne4 {[%emt 0:04:11]} Bg7 {[%emt 0:04:41]} 24. Bc4 {[%emt 0:02:39]} Rfd8 {[%emt 0:02:30]} 25. Kh2 {[%emt 0:02:38]} f5 {[%emt 0:15:40]} 26. Nd2 {[%emt 0:02:25]} Qe6 {[%emt 0:01:37]} 27. Bf1 {[%emt 0:00:14]} Bf8 {[%emt 0:01:11]} 28. Nc4 {[%emt 0:00:22]} Ra8 {[%emt 0:00:09]} 29. Rd1 {[%emt 0:03:10]} Kh8 {[%emt 0:01:19]} 30. Qc3 {[%emt 0:00:58]} a4 {[%emt 0:00:21]} 31. Ne3 {[%emt 0:07:08]} Rd7 {[%emt 0:03:02]} 32. g4 {[%emt 0:11:49]} fxg4 {[%emt 0:01:00]} 33. hxg4 {[%emt 0:00:57]} Rb8 {[%emt 0:01:24]} 34. g5 {[%emt 0:08:40]} Rb3 {[%emt 0:00:07]} 35. Bh3 {[%emt 0:00:30]} Qe7 {[%emt 0:00:19]} 36. Qe1 {[%emt 0:04:25]} Rd8 {[%emt 0:00:50]} 37. Rfd2 {[%emt 0:00:47]} h6 {[%emt 0:01:04]} 38. Qg3 {[%emt 0:09:28]} Bg7 {[%emt 0:00:44]} 39. gxh6 {[%emt 0:02:13]} Bxh6 {[%emt 0:00:13]} 40. Rf2 {[%emt 0:00:00]} Be4 {[%emt 0:00:00]} 41. Rxd8+ {[%emt 0:08:38]} Qxd8 {[%emt 0:01:00]} 42. Bg2 {[%emt 0:00:52]} 1/2-1/2

[Event "Cracovia Festival-A 2023"]
[Site "Krakow"]
[Date "2023.12.29"]
[Round "3.2"]
[White "Dzida, Kamil"]
[Black "Gumularz, Szymon"]
[Result "1/2-1/2"]
[ECO "C15"]
[WhiteElo "2396"]
[BlackElo "2576"]
[Annotator "ChessBase"]
[PlyCount "69"]
[EventDate "2023.12.24"]
[EventType "swiss"]
[EventCountry "POL"]
[SourceTitle "playchess.com"]
[Source "ChessBase"]
[SourceQuality "1"]
[TimeControl "40/5400+30:1800+30"]

1. e4 {[%emt 0:00:04]} e6 {[%emt 0:00:05]} 2. d4 {[%emt 0:00:13]} d5 {[%emt 0:00:06]} 3. Nc3 {[%emt 0:00:11]} Bb4 {[%emt 0:00:06]} 4. exd5 {[%emt 0:00:10]} exd5 {[%emt 0:00:10]} 5. Bd3 {[%emt 0:00:05]} Nc6 {[%emt 0:00:47]} 6. a3 {[%emt 0:01:38]} Bxc3+ {[%emt 0:00:25]} 7. bxc3 {[%emt 0:00:07]} Nge7 {[%emt 0:02:07]} 8. Qf3 {[%emt 0:02:10]} Be6 {[%emt 0:00:49]} 9. Rb1 {[%emt 0:09:27]} b6 {[%emt 0:00:36]} 10. Ne2 {[%emt 0:01:07]} Qd7 {[%emt 0:00:05]} 11. O-O {[%emt 0:05:51]} Bf5 {[%emt 0:00:53]} 12. Qg3 {[%emt 0:04:42]} O-O {[%emt 0:00:39]} 13. Bf4 {[%emt 0:01:19]} Bxd3 {[%emt 0:00:12]} 14. cxd3 {[%emt 0:00:38]} Rac8 {[%emt 0:01:33]} 15. Rfe1 {[%emt 0:05:17]} Rfe8 {[%emt 0:00:30]} 16. h4 {[%emt 0:06:53]} Kh8 {[%emt 0:06:43]} 17. h5 {[%emt 0:03:22]} h6 {[%emt 0:00:05]} 18. Qf3 {[%emt 0:01:27]} Ng8 {[%emt 0:03:06]} 19. Ng3 {[%emt 0:04:16]} Re6 {[%emt 0:00:44]} 20. Nf1 {[%emt 0:06:14]} Rce8 {[%emt 0:13:52]} 21. Re3 {[%emt 0:00:44]} Nd8 {[%emt 0:01:42]} 22. Rbe1 {[%emt 0:04:45]} c5 {[%emt 0:00:58]} 23. dxc5 {[%emt 0:02:52]} bxc5 {[%emt 0:00:08]} 24. c4 {[%emt 0:02:01]} d4 {[%emt 0:06:35]} 25. Rxe6 {[%emt 0:00:53]} Rxe6 {[%emt 0:00:06]} 26. Rb1 {[%emt 0:00:40]} Rb6 {[%emt 0:01:09]} 27. Rxb6 {[%emt 0:04:18]} axb6 {[%emt 0:00:52]} 28. Qa8 {[%emt 0:04:09]} Kh7 {[%emt 0:26:30]} 29. Qb8 {[%emt 0:21:30]} Nf6 {[%emt 0:00:06]} 30. Qxb6 {[%emt 0:01:13]} Nxh5 {[%emt 0:00:05]} 31. Qd6 {[%emt 0:03:06]} Qg4 {[%emt 0:04:07]} 32. Bd2 {[%emt 0:01:09]} Ne6 {[%emt 0:00:08]} 33. f3 {[%emt 0:00:41]} Qg6 {[%emt 0:09:56]} 34. Qe5 {[%emt 0:00:14]} Nf6 {[%emt 0:00:24]} 35. Qe2 {[%emt 0:00:18]} 1/2-1/2

[Event "Cracovia Festival-A 2023"]
[Site "Krakow"]
[Date "2023.12.29"]
[Round "3.3"]
[White "Keinanen, Toivo"]
[Black "Bogdanov, Egor"]
[Result "1-0"]
[ECO "A15"]
[WhiteElo "2522"]
[BlackElo "2394"]
[Annotator "ChessBase"]
[PlyCount "97"]
[EventDate "2023.12.24"]
[EventType "swiss"]
[EventCountry "POL"]
[SourceTitle "playchess.com"]
[Source "ChessBase"]
[SourceQuality "1"]
[TimeControl "40/5400+30:1800+30"]

1. c4 {[%emt 0:00:11]} Nf6 {[%emt 0:00:09]} 2. Nf3 {[%emt 0:00:02]} e6 {[%emt 0:01:31]} 3. g3 {[%emt 0:00:49]} d5 {[%emt 0:02:17]} 4. Bg2 {[%emt 0:01:31]} d4 {[%emt 0:00:41]} 5. d3 {[%emt 0:00:11]} c5 {[%emt 0:00:23]} 6. e4 {[%emt 0:00:23]} dxe3 {[%emt 0:10:17]} 7. Bxe3 {[%emt 0:23:03]} Nc6 {[%emt 0:01:00]} 8. d4 {[%emt 0:00:20]} cxd4 {[%emt 0:14:38]} 9. Nxd4 {[%emt 0:00:25]} Nxd4 {[%emt 0:00:13]} 10. Qxd4 {[%emt 0:05:39]} Bb4+ {[%emt 0:17:04]} 11. Nc3 {[%emt 0:04:28]} O-O {[%emt 0:03:05]} 12. O-O {[%emt 0:03:47]} Qe7 {[%emt 0:02:17]} 13. c5 {[%emt 0:05:25]} Bxc3 {[%emt 0:04:24]} 14. Qxc3 {[%emt 0:01:02]} Nd5 {[%emt 0:00:35]} 15. Qb3 {[%emt 0:10:56]} Nxe3 {[%emt 0:00:28]} 16. Qxe3 {[%emt 0:00:27]} Rb8 {[%emt 0:04:10]} 17. Rad1 {[%emt 0:06:30]} Bd7 {[%emt 0:02:21]} 18. Rd6 {[%emt 0:01:31]} Bc6 {[%emt 0:00:27]} 19. Rfd1 {[%emt 0:06:47]} Bxg2 {[%emt 0:01:50]} 20. Kxg2 {[%emt 0:00:01]} Rbc8 {[%emt 0:08:19]} 21. b4 {[%emt 0:03:02]} Rc7 {[%emt 0:00:59]} 22. Qd4 {[%emt 0:01:23]} g6 {[%emt 0:06:20]} 23. Rd7 {[%emt 0:05:58]} Rxd7 {[%emt 0:00:44]} 24. Qxd7 {[%emt 0:00:02]} Re8 25. h4 {[%emt 0:06:56]} Kf8 {[%emt 0:02:54]} 26. Qa4 {[%emt 0:03:17]} Rd8 {[%emt 0:08:43]} 27. Rxd8+ {[%emt 0:00:56]} Qxd8 {[%emt 0:00:00]} 28. Qxa7 {[%emt 0:00:08]} Qd5+ {[%emt 0:00:06]} 29. Kh2 {[%emt 0:01:35]} Kg7 {[%emt 0:00:38]} 30. Qa3 {[%emt 0:03:30]} Qd4 {[%emt 0:00:10]} 31. Kg1 {[%emt 0:00:26]} Qd1+ {[%emt 0:02:01]} 32. Kg2 {[%emt 0:00:06]} Qd4 {[%emt 0:00:02]} 33. b5 {[%emt 0:02:18]} e5 {[%emt 0:01:02]} 34. Qc1 {[%emt 0:02:15]} Qd5+ {[%emt 0:01:17]} 35. Kg1 {[%emt 0:00:06]} e4 {[%emt 0:02:11]} 36. a4 {[%emt 0:01:35]} f6 {[%emt 0:00:27]} 37. a5 {[%emt 0:00:35]} h5 {[%emt 0:00:31]} 38. a6 {[%emt 0:00:55]} bxa6 {[%emt 0:00:03]} 39. bxa6 {[%emt 0:00:09]} Qa2 {[%emt 0:02:45]} 40. c6 {[%emt 0:00:00]} Qxa6 {[%emt 0:00:00]} 41. c7 {[%emt 0:03:22]} Qc8 {[%emt 0:00:04]} 42. Qc5 {[%emt 0:05:38]} Kf7 {[%emt 0:13:39]} 43. Qd5+ {[%emt 0:00:53]} Ke7 {[%emt 0:00:18]} 44. Qxe4+ {[%emt 0:00:13]} Kd7 {[%emt 0:00:52]} 45. Qxg6 {[%emt 0:00:36]} Qxc7 {[%emt 0:00:05]} 46. Qf7+ {[%emt 0:02:17]} Kc8 {[%emt 0:00:06]} 47. Qxc7+ {[%emt 0:01:52]} Kxc7 {[%emt 0:00:01]} 48. g4 {[%emt 0:01:31]} Kd6 {[%emt 0:00:16]} 49. gxh5 {[%emt 0:00:21]} 1-0

[Event "Cracovia Festival-A 2023"]
[Site "Krakow"]
[Date "2023.12.29"]
[Round "3.4"]
[White "Janik, Igor"]
[Black "Sieciechowicz, Marcin"]
[Result "1/2-1/2"]
[ECO "B10"]
[WhiteElo "2514"]
[BlackElo "2391"]
[Annotator "ChessBase"]
[PlyCount "29"]
[EventDate "2023.12.24"]
[EventType "swiss"]
[EventCountry "POL"]
[SourceTitle "playchess.com"]
[Source "ChessBase"]
[SourceQuality "1"]
[TimeControl "40/5400+30:1800+30"]

1. c4 c6 {[%emt 0:00:36]} 2. e4 {[%emt 0:00:13]} d5 {[%emt 0:03:25]} 3. exd5 {[%emt 0:00:19]} cxd5 {[%emt 0:00:42]} 4. cxd5 {[%emt 0:00:08]} Nf6 {[%emt 0:00:31]} 5. Qa4+ {[%emt 0:00:11]} Nbd7 {[%emt 0:00:48]} 6. Nc3 {[%emt 0:00:10]} g6 {[%emt 0:00:37]} 7. Bc4 {[%emt 0:00:07]} Bg7 {[%emt 0:00:22]} 8. d3 {[%emt 0:00:09]} O-O {[%emt 0:00:31]} 9. Nf3 {[%emt 0:00:19]} a6 {[%emt 0:03:08]} 10. Qa3 {[%emt 0:00:10]} Nb6 {[%emt 0:02:47]} 11. Qb3 {[%emt 0:00:12]} Nxc4 {[%emt 0:03:14]} 12. dxc4 {[%emt 0:00:12]} b5 {[%emt 0:00:43]} 13. O-O {[%emt 0:02:45]} bxc4 {[%emt 0:00:49]} 14. Qxc4 {[%emt 0:00:54]} e6 {[%emt 0:04:47]} 15. dxe6 {[%emt 0:01:01]} 1/2-1/2

[Event "Cracovia Festival-A 2023"]
[Site "Krakow"]
[Date "2023.12.29"]
[Round "3.5"]
[White "Akhvlediani, Irakli"]
[Black "Akbas, Umut Ata"]
[Result "1/2-1/2"]
[ECO "A13"]
[WhiteElo "2359"]
[BlackElo "2446"]
[Annotator "ChessBase"]
[PlyCount "74"]
[EventDate "2023.12.24"]
[EventType "swiss"]
[EventCountry "POL"]
[SourceTitle "playchess.com"]
[Source "ChessBase"]
[SourceQuality "1"]
[TimeControl "40/5400+30:1800+30"]

1. c4 {[%emt 0:00:04]} e6 {[%emt 0:12:10]} 2. Nc3 {[%emt 0:00:07]} d5 {[%emt 0:00:08]} 3. d4 {[%emt 0:00:09]} Bb4 {[%emt 0:00:48]} 4. cxd5 {[%emt 0:00:15]} exd5 {[%emt 0:00:07]} 5. Bf4 {[%emt 0:00:07]} Nf6 {[%emt 0:01:25]} 6. e3 {[%emt 0:00:04]} O-O {[%emt 0:06:21]} 7. Bd3 {[%emt 0:00:04]} Re8 {[%emt 0:01:26]} 8. Nge2 {[%emt 0:00:34]} Nh5 {[%emt 0:07:47]} 9. Qa4 {[%emt 0:24:21]} Nxf4 {[%emt 0:07:11]} 10. Nxf4 {[%emt 0:00:08]} Bd6 {[%emt 0:02:09]} 11. Nfe2 {[%emt 0:00:36]} c6 {[%emt 0:00:51]} 12. Qc2 {[%emt 0:00:07]} h6 {[%emt 0:10:21]} 13. O-O {[%emt 0:01:50]} Qh4 {[%emt 0:08:12]} 14. Ng3 {[%emt 0:01:19]} Nd7 {[%emt 0:06:15]} 15. Rfe1 {[%emt 0:34:34]} Nf6 {[%emt 0:03:24]} 16. Nf1 {[%emt 0:00:04]} Bd7 {[%emt 0:06:37]} 17. f3 {[%emt 0:00:10]} Re7 {[%emt 0:03:31]} 18. Qf2 {[%emt 0:01:55]} Qxf2+ {[%emt 0:01:07]} 19. Kxf2 {[%emt 0:00:04]} Rae8 {[%emt 0:00:58]} 20. Rac1 {[%emt 0:01:35]} g6 {[%emt 0:01:23]} 21. a3 {[%emt 0:00:58]} Kg7 {[%emt 0:00:58]} 22. Re2 {[%emt 0:11:12]} h5 {[%emt 0:02:31]} 23. h4 {[%emt 0:02:39]} Kh6 {[%emt 0:03:44]} 24. Nd2 {[%emt 0:01:32]} Rg8 {[%emt 0:02:20]} 25. e4 {[%emt 0:02:22]} dxe4 {[%emt 0:00:55]} 26. Ndxe4 {[%emt 0:00:21]} Nxe4+ {[%emt 0:00:34]} 27. Nxe4 {[%emt 0:00:59]} Bf4 {[%emt 0:01:58]} 28. Rce1 {[%emt 0:00:14]} Rge8 {[%emt 0:03:57]} 29. Nc5 {[%emt 0:08:36]} Rxe2+ {[%emt 0:00:17]} 30. Rxe2 {[%emt 0:00:04]} Rxe2+ {[%emt 0:00:10]} 31. Bxe2 {[%emt 0:00:03]} Bc8 {[%emt 0:00:06]} 32. Bc4 {[%emt 0:00:21]} Kg7 {[%emt 0:00:44]} 33. Nd3 {[%emt 0:01:20]} Bd6 {[%emt 0:01:24]} 34. f4 {[%emt 0:00:46]} Bf5 {[%emt 0:01:23]} 35. Ke3 {[%emt 0:00:24]} Kf6 {[%emt 0:02:41]} 36. Ne5 {[%emt 0:02:26]} Be6 {[%emt 0:00:10]} 37. Bxe6 {[%emt 0:02:43]} Kxe6 {[%emt 0:00:11]} 1/2-1/2

[Event "Cracovia Festival-A 2023"]
[Site "Krakow"]
[Date "2023.12.29"]
[Round "3.6"]
[White "Soffer, Ram"]
[Black "Kulkarni Bhakti"]
[Result "1-0"]
[ECO "A80"]
[WhiteElo "2444"]
[BlackElo "2364"]
[Annotator "ChessBase"]
[PlyCount "47"]
[EventDate "2023.12.24"]
[EventType "swiss"]
[EventCountry "POL"]
[SourceTitle "playchess.com"]
[Source "ChessBase"]
[SourceQuality "1"]
[TimeControl "40/5400+30:1800+30"]

1. d4 {[%emt 0:00:04]} f5 {[%emt 0:04:35]} 2. Bg5 {[%emt 0:00:19]} g6 {[%emt 0:00:33]} 3. Nc3 {[%emt 0:00:35]} Bg7 {[%emt 0:00:31]} 4. Nf3 {[%emt 0:00:26]} Nf6 {[%emt 0:03:36]} 5. e3 {[%emt 0:00:36]} d6 {[%emt 0:03:53]} 6. Bd3 {[%emt 0:05:12]} h6 {[%emt 0:03:52]} 7. Bxf6 {[%emt 0:01:27]} Bxf6 {[%emt 0:00:29]} 8. e4 {[%emt 0:00:32]} e6 {[%emt 0:04:58]} 9. Qe2 {[%emt 0:05:05]} Qe7 {[%emt 0:04:26]} 10. O-O-O {[%emt 0:04:02]} O-O {[%emt 0:10:39]} 11. e5 {[%emt 0:03:05]} Bg7 {[%emt 0:03:08]} 12. Rhg1 {[%emt 0:00:57]} Qf7 {[%emt 0:10:02]} 13. g4 {[%emt 0:03:49]} Nc6 {[%emt 0:20:58]} 14. gxf5 {[%emt 0:01:17]} gxf5 {[%emt 0:00:06]} 15. Rg3 {[%emt 0:04:06]} Kh8 {[%emt 0:01:38]} 16. Rdg1 {[%emt 0:00:35]} Rg8 {[%emt 0:00:03]} 17. Qe3 {[%emt 0:10:28]} Bd7 {[%emt 0:08:09]} 18. Ne2 {[%emt 0:10:11]} Ne7 {[%emt 0:00:31]} 19. Nf4 {[%emt 0:00:35]} d5 {[%emt 0:04:27]} 20. Ng5 {[%emt 0:00:53]} Qe8 {[%emt 0:00:53]} 21. Ngxe6 {[%emt 0:00:33]} Bxe6 {[%emt 0:01:34]} 22. Nxe6 {[%emt 0:00:07]} Bf8 {[%emt 0:00:23]} 23. Rxg8+ {[%emt 0:00:31]} Nxg8 {[%emt 0:00:03]} 24. Nxc7 {[%emt 0:00:25]} 1-0

[Event "Cracovia Festival-A 2023"]
[Site "Krakow"]
[Date "2023.12.29"]
[Round "3.7"]
[White "Sernecki, Franciszek"]
[Black "Kozak, Antoni"]
[Result "1-0"]
[ECO "E10"]
[WhiteElo "2325"]
[BlackElo "2442"]
[Annotator "ChessBase"]
[PlyCount "99"]
[EventDate "2023.12.24"]
[EventType "swiss"]
[EventCountry "POL"]
[SourceTitle "playchess.com"]
[Source "ChessBase"]
[SourceQuality "1"]
[TimeControl "40/5400+30:1800+30"]

1. d4 {[%emt 0:00:24]} Nf6 {[%emt 0:00:32]} 2. c4 {[%emt 0:00:12]} e6 {[%emt 0:00:11]} 3. Nf3 {[%emt 0:00:08]} d5 {[%emt 0:00:07]} 4. g3 {[%emt 0:01:07]} Bb4+ {[%emt 0:01:33]} 5. Bd2 {[%emt 0:01:52]} Be7 {[%emt 0:00:07]} 6. Bg2 {[%emt 0:00:15]} Ne4 {[%emt 0:02:40]} 7. O-O {[%emt 0:01:52]} c6 {[%emt 0:03:14]} 8. Qc2 {[%emt 0:02:35]} Nd7 {[%emt 0:03:00]} 9. Bf4 {[%emt 0:03:51]} f5 {[%emt 0:08:23]} 10. Nbd2 {[%emt 0:15:41]} g5 {[%emt 0:19:09]} 11. Be3 {[%emt 0:04:25]} Nd6 {[%emt 0:02:32]} 12. Ne5 {[%emt 0:10:21]} Nxe5 {[%emt 0:11:51]} 13. dxe5 {[%emt 0:00:11]} Nf7 {[%emt 0:00:06]} 14. f4 {[%emt 0:01:47]} h5 {[%emt 0:01:21]} 15. cxd5 {[%emt 0:17:03]} cxd5 {[%emt 0:00:19]} 16. Rad1 {[%emt 0:03:53]} h4 {[%emt 0:06:38]} 17. Bf2 {[%emt 0:07:18]} hxg3 {[%emt 0:04:58]} 18. hxg3 {[%emt 0:01:45]} gxf4 {[%emt 0:00:23]} 19. gxf4 {[%emt 0:00:21]} Bd7 {[%emt 0:00:38]} 20. Qb3 {[%emt 0:03:39]} Bc6 {[%emt 0:11:19]} 21. e4 {[%emt 0:02:00]} fxe4 {[%emt 0:00:11]} 22. Nxe4 {[%emt 0:01:24]} Qa5 {[%emt 0:00:25]} 23. Nf6+ {[%emt 0:00:44]} Bxf6 {[%emt 0:00:07]} 24. exf6 {[%emt 0:00:17]} O-O-O {[%emt 0:02:28]} 25. Rc1 {[%emt 0:02:31]} Rdg8 {[%emt 0:01:44]} 26. Qe3 {[%emt 0:01:42]} Kb8 {[%emt 0:05:14]} 27. Qxe6 {[%emt 0:08:43]} d4 {[%emt 0:03:00]} 28. Rxc6 {[%emt 0:00:41]} Qh5 {[%emt 0:00:10]} 29. Rc8+ {[%emt 0:03:17]} Rxc8 {[%emt 0:00:04]} 30. Bg3 {[%emt 0:00:05]} Ka8 {[%emt 0:03:13]} 31. f5 {[%emt 0:01:00]} Rb8 {[%emt 0:05:58]} 32. Rc1 {[%emt 0:00:24]} Nd8 {[%emt 0:02:29]} 33. Qd6 {[%emt 0:04:45]} Nc6 {[%emt 0:00:10]} 34. Bxc6 {[%emt 0:00:43]} Qg5 {[%emt 0:00:52]} 35. Re1 {[%emt 0:00:19]} Rhg8 {[%emt 0:00:51]} 36. f7 {[%emt 0:00:40]} Qxg3+ {[%emt 0:01:51]} 37. Qxg3 {[%emt 0:00:01]} Rxg3+ {[%emt 0:00:05]} 38. Kf2 {[%emt 0:00:59]} Rh3 {[%emt 0:00:36]} 39. Be8 {[%emt 0:00:29]} Rh8 {[%emt 0:00:04]} 40. f6 {[%emt 0:00:00]} d3 {[%emt 0:00:00]} 41. Rd1 {[%emt 0:07:34]} Rd8 {[%emt 0:10:15]} 42. Ke3 {[%emt 0:02:32]} Rd6 {[%emt 0:00:57]} 43. Rxd3 {[%emt 0:05:18]} Re6+ {[%emt 0:00:29]} 44. Kf4 {[%emt 0:01:11]} Kb8 {[%emt 0:00:05]} 45. Kf5 {[%emt 0:02:41]} Re2 {[%emt 0:00:10]} 46. Rh3 {[%emt 0:04:17]} Rf8 {[%emt 0:00:33]} 47. Rg3 {[%emt 0:00:40]} Rf2+ {[%emt 0:01:06]} 48. Kg6 {[%emt 0:00:31]} Ka8 {[%emt 0:00:18]} 49. Kg7 {[%emt 0:00:11]} Rxe8 {[%emt 0:00:03]} 50. fxe8=R# {[%emt 0:00:10]} 1-0

[Event "Cracovia Festival-A 2023"]
[Site "Krakow"]
[Date "2023.12.29"]
[Round "3.8"]
[White "Polak, Tomas"]
[Black "Anwesh, Upadhyaya"]
[Result "1-0"]
[ECO "D45"]
[WhiteElo "2517"]
[BlackElo "2350"]
[Annotator "ChessBase"]
[PlyCount "114"]
[EventDate "2023.12.24"]
[EventType "swiss"]
[EventCountry "POL"]
[SourceTitle "playchess.com"]
[Source "ChessBase"]
[SourceQuality "1"]
[TimeControl "40/5400+30:1800+30"]

1. d4 {[%emt 0:00:05]} d5 {[%emt 0:10:30]} 2. c4 {[%emt 0:00:19]} c6 {[%emt 0:00:09]} 3. Nc3 {[%emt 0:00:08]} Nf6 {[%emt 0:00:06]} 4. e3 {[%emt 0:00:22]} e6 {[%emt 0:00:17]} 5. Nf3 {[%emt 0:00:14]} Nbd7 {[%emt 0:00:08]} 6. Qc2 {[%emt 0:00:16]} Bd6 {[%emt 0:00:18]} 7. b3 {[%emt 0:00:39]} O-O {[%emt 0:00:16]} 8. Be2 {[%emt 0:00:37]} b6 {[%emt 0:00:46]} 9. O-O {[%emt 0:00:27]} Bb7 {[%emt 0:00:08]} 10. Bb2 {[%emt 0:00:09]} Qe7 {[%emt 0:00:18]} 11. Rad1 {[%emt 0:00:20]} Rad8 {[%emt 0:00:34]} 12. Rfe1 {[%emt 0:00:18]} Rfe8 {[%emt 0:00:05]} 13. h3 {[%emt 0:00:21]} h6 {[%emt 0:00:41]} 14. e4 {[%emt 0:01:19]} dxe4 {[%emt 0:02:52]} 15. Nxe4 {[%emt 0:01:58]} Nxe4 {[%emt 0:00:05]} 16. Qxe4 {[%emt 0:00:06]} f5 {[%emt 0:05:11]} 17. Qc2 {[%emt 0:06:44]} c5 {[%emt 0:02:15]} 18. d5 {[%emt 0:10:12]} exd5 {[%emt 0:10:03]} 19. cxd5 {[%emt 0:00:51]} Qf7 {[%emt 0:01:39]} 20. Bc4 {[%emt 0:03:19]} Rxe1+ {[%emt 0:05:41]} 21. Rxe1 {[%emt 0:02:36]} b5 {[%emt 0:11:36]} 22. Bxb5 {[%emt 0:05:43]} Bxd5 {[%emt 0:00:32]} 23. Rd1 {[%emt 0:13:37]} Nb6 {[%emt 0:04:45]} 24. Ne5 {[%emt 0:02:43]} Qe6 {[%emt 0:09:06]} 25. Qc3 {[%emt 0:03:47]} Bf8 {[%emt 0:15:27]} 26. Be2 {[%emt 0:08:37]} Qe8 {[%emt 0:02:52]} 27. Rd3 {[%emt 0:10:52]} Be4 {[%emt 0:02:20]} 28. Rxd8 {[%emt 0:03:44]} Qxd8 {[%emt 0:00:07]} 29. f3 {[%emt 0:00:22]} Bb1 {[%emt 0:11:18]} 30. a4 {[%emt 0:01:39]} f4 {[%emt 0:01:41]} 31. a5 {[%emt 0:08:36]} Nc8 {[%emt 0:02:05]} 32. Qc1 {[%emt 0:05:27]} Bf5 {[%emt 0:00:48]} 33. Qxf4 {[%emt 0:00:32]} Nd6 {[%emt 0:00:32]} 34. Bc4+ {[%emt 0:03:52]} Nxc4 {[%emt 0:01:12]} 35. Qxc4+ {[%emt 0:00:24]} Kh7 {[%emt 0:00:08]} 36. Qf7 {[%emt 0:00:09]} Qf6 {[%emt 0:01:15]} 37. Qxa7 {[%emt 0:01:06]} Be6 {[%emt 0:00:35]} 38. Nd7 {[%emt 0:01:44]} Qf7 {[%emt 0:00:31]} 39. Nxf8+ {[%emt 0:00:20]} Qxf8 {[%emt 0:00:02]} 40. Qb7 {[%emt 0:00:00]} Qf7 {[%emt 0:00:00]} 41. Qxf7 {[%emt 0:13:09]} Bxf7 {[%emt 0:01:06]} 42. a6 {[%emt 0:00:11]} Bxb3 {[%emt 0:04:03]} 43. Ba3 {[%emt 0:01:29]} h5 {[%emt 0:08:44]} 44. Bxc5 {[%emt 0:00:40]} Kg8 {[%emt 0:02:36]} 45. Kf2 {[%emt 0:00:28]} Kf7 {[%emt 0:00:25]} 46. Kg3 {[%emt 0:01:13]} g5 {[%emt 0:08:04]} 47. Be3 {[%emt 0:01:13]} Kg6 {[%emt 0:02:45]} 48. Kf2 {[%emt 0:00:09]} Bc4 {[%emt 0:00:27]} 49. a7 {[%emt 0:00:06]} Bd5 {[%emt 0:00:02]} 50. Bb6 {[%emt 0:00:27]} Bb7 {[%emt 0:02:52]} 51. Bd8 {[%emt 0:00:13]} Ba8 {[%emt 0:00:59]} 52. g4 {[%emt 0:00:16]} Bb7 {[%emt 0:00:10]} 53. Kg3 {[%emt 0:01:31]} Ba8 {[%emt 0:01:29]} 54. gxh5+ {[%emt 0:01:11]} Kxh5 {[%emt 0:00:05]} 55. f4 {[%emt 0:00:04]} gxf4+ {[%emt 0:00:25]} 56. Kxf4 {[%emt 0:00:04]} Kg6 {[%emt 0:00:23]} 57. Ke5 {[%emt 0:00:05]} Kf7 {[%emt 0:00:18]} 1-0